fUST/lending_fUST_20250523
["ID","MTS","AMOUNT","RATE_DAILY","PERIOD"]
[362022598,1747937472911,-9816.64,0.00022915,2]
[362022599,1747937472923,-430.0,0.00022915,2]
[362022600,1747937472932,-430.0,0.00022915,2]
[362022601,1747937472942,-430.0,0.00022915,2]
[362022602,1747937472952,-1432.41,0.00022915,2]
[362022613,1747937473086,-944.38,0.00022915,2]
[362022615,1747937473097,-880.15,0.00022915,2]
[362022617,1747937473106,-430.0,0.00022915,2]
[362022619,1747937473116,-430.0,0.00022915,2]
[362022621,1747937473126,-430.0,0.00022915,2]
[362022623,1747937473135,-633.5,0.00022915,2]
[362022625,1747937473146,-430.0,0.00022915,2]
[362022627,1747937473156,-430.0,0.00022915,2]
[362022629,1747937473165,-430.0,0.00022915,2]
[362022631,1747937473175,-430.0,0.00022915,2]
[362022633,1747937473185,-430.0,0.00022915,2]
[362022635,1747937473194,-430.0,0.00022915,2]
[362022637,1747937473203,-760.18,0.00022915,2]
[362022640,1747937473213,-1811.62,0.00022915,2]
[362022642,1747937473222,-1062.44,0.00022915,2]
[362022644,1747937473232,-1627.43,0.00022915,2]
[362022646,1747937473242,-679.42,0.00022915,2]
[362022648,1747937473252,-430.0,0.00022915,2]
[362022650,1747937473262,-2910.52,0.00022915,2]
[362022652,1747937473272,-430.0,0.00022915,2]
[362022654,1747937473281,-370.0,0.00022915,2]
[362022656,1747937473291,-798.79,0.00022915,2]
[362022658,1747937473301,-997.02,0.00022915,2]
[362022660,1747937473310,-1202.01,0.00022915,2]
[362022662,1747937473320,-500.0,0.00022915,2]
[362022664,1747937473332,-2934.9,0.00022915,2]
[362022666,1747937473342,-8361.66808399,0.00022928,2]
[362022668,1747937473351,-151.0,0.00022935,2]
[362022670,1747937473361,-800.0,0.00022941,2]
[362022672,1747937473370,-307.735337,0.0002296,7]
[362022674,1747937473380,-307.735337,0.0002296,7]
[362022676,1747937473390,-151.0,0.0002296,7]
[362022678,1747937473399,-166.491313,0.0002296,7]
[362022680,1747937473409,-166.491313,0.0002296,7]
[362022682,1747937473418,-800.0,0.00022965,2]
[362022684,1747937473427,-447.56,0.00022966,2]
[362022686,1747937473437,-793.08,0.00022966,2]
[362022688,1747937473446,-870.97,0.00022966,2]
[362022690,1747937473456,-754.99,0.00022966,2]
[362022692,1747937473466,-2636.85,0.00022966,2]
[362022694,1747937473476,-4193.45,0.00022966,2]
[362022696,1747937473486,-635.81,0.00022966,2]
[362022698,1747937473495,-8839.91,0.00022966,2]
[362022700,1747937473505,-151.0,0.0002297,7]
[362022703,1747937473515,-151.0,0.0002297,7]
[362022705,1747937473525,-847.748237,0.0002297,7]
[362022707,1747937473534,-847.748237,0.0002297,7]
[362022709,1747937473544,-175.64748,0.0002297,7]
[362022711,1747937473553,-175.647475,0.0002297,7]
[362022713,1747937473563,-151.0,0.0002297,7]
[362022715,1747937473572,-188.2314,0.0002297,7]
[362022717,1747937473582,-188.231405,0.0002297,7]
[362022719,1747937473592,-1246.0,0.00022978,16]
[362022721,1747937473601,-2000.0,0.0002299,2]
[362022723,1747937473611,-151.0,0.0002299,7]
[362022724,1747937473621,-313.460734,0.0002299,7]
[362022725,1747937473631,-313.460724,0.0002299,7]
[362022726,1747937473641,-274.446248,0.0002299,7]
[362022727,1747937473650,-163.931405,0.0002299,7]
[362022728,1747937473659,-274.446238,0.0002299,7]
[362022729,1747937473669,-163.931409,0.0002299,7]
[362022730,1747937473678,-160.0,0.00022999,2]
[362022731,1747937473688,-160.0,0.00022999,2]
[362022732,1747937473698,-1049.0,0.00023,2]
[362022733,1747937473707,-560.0,0.00023,2]
[362022734,1747937473717,-84108.34279885,0.00023,2]
[362022735,1747937473727,-700.24252333,0.00023,2]
[362022736,1747937473736,-1763056.59880978,0.00023,20]
[362022737,1747937473746,-3016.90270518,0.00023,2]
[362022738,1747937473757,-151.0,0.00023,7]
[362022739,1747937473766,-504.33144106,0.00023,30]
[362022740,1747937473777,-580.1745725,0.00023,30]
[362022741,1747937473787,-500.0,0.00023,30]
[362022742,1747937473797,-500.0,0.00023,30]
[362022743,1747937473806,-500.0,0.00023,30]
[362022744,1747937473816,-151.0,0.00023,7]
[362022745,1747937473826,-151.0,0.00023,7]
[362022746,1747937473835,-151.0,0.00023,7]
[362022747,1747937473845,-327.968916,0.00023,7]
[362022748,1747937473854,-327.968916,0.00023,7]
[362022749,1747937473864,-327.968916,0.00023,7]
[362022750,1747937473874,-327.96892,0.00023,7]
[362022751,1747937473884,-224.107186,0.00023,7]
[362022752,1747937473894,-224.107186,0.00023,7]
[362022753,1747937473903,-224.107186,0.00023,7]
[362022754,1747937473913,-224.107183,0.00023,7]
[362022755,1747937473923,-935.62713,0.00023,7]
[362022756,1747937473934,-935.627138,0.00023,7]
[362022757,1747937473943,-307.735337,0.00023,7]
[362022758,1747937473953,-307.735337,0.00023,7]
[362022759,1747937473962,-307.735337,0.00023,7]
[362022760,1747937473973,-307.735339,0.00023,7]
[362022761,1747937473983,-351.638051,0.00023,7]
[362022762,1747937473992,-351.638051,0.00023,7]
[362022763,1747937474002,-351.638051,0.00023,7]
[362022764,1747937474011,-351.638049,0.00023,7]
[362022765,1747937474022,-2000.0,0.00023,2]
[362022766,1747937474032,-422.78357425,0.00023,3]
[362022767,1747937474041,-160.0,0.00023,3]
[362022768,1747937474052,-160.0,0.00023,3]
[362022769,1747937474062,-2663.27909513,0.00023003,8]
[362022770,1747937474071,-160.0,0.00023012,2]
[362022771,1747937474080,-160.0,0.00023012,2]
[362022772,1747937474089,-151.0,0.00023013,7]
[362022773,1747937474098,-151.0,0.00023013,7]
[362022774,1747937474107,-524.78,0.00023013,2]
[362022775,1747937474116,-430.0,0.00023013,2]
[362022776,1747937474126,-430.0,0.00023013,2]
[362022777,1747937474135,-439.05,0.00023013,2]
[362022778,1747937474144,-430.0,0.00023013,2]
[362022779,1747937474154,-560.74505047,0.00023013,2]
[362022780,1747937474163,-461.81402624,0.00023013,2]
[362022781,1747937474172,-236.06,0.00023013,2]
[362022782,1747937474181,-430.0,0.00023013,2]
[362022783,1747937474191,-430.0,0.00023013,2]
[362022784,1747937474200,-430.0,0.00023013,2]
[362022785,1747937474211,-430.0,0.00023013,2]
[362022786,1747937474221,-1218.95,0.00023013,2]
[362022787,1747937474230,-430.0,0.00023013,2]
[362022788,1747937474240,-430.0,0.00023013,2]
[362022789,1747937474249,-296.92437452,0.00023013,2]
[362022790,1747937474259,-430.0,0.00023013,2]
[362022791,1747937474268,-580.09,0.00023013,2]
[362022792,1747937474277,-550.0,0.00023013,2]
[362022793,1747937474286,-430.0,0.00023013,2]
[362022794,1747937474296,-430.0,0.00023013,2]
[362022795,1747937474306,-430.0,0.00023013,2]
[362022796,1747937474315,-430.0,0.00023013,2]
[362022797,1747937474324,-430.0,0.00023013,2]
[362022798,1747937474333,-360.93,0.00023013,2]
[362022799,1747937474343,-430.0,0.00023013,2]
[362022800,1747937474352,-430.0,0.00023013,2]
[362022801,1747937474361,-430.0,0.00023013,2]
[362022802,1747937474371,-450.49,0.00023013,2]
[362022803,1747937474381,-430.0,0.00023013,2]
[362022804,1747937474391,-1179.96,0.00023013,2]
[362022805,1747937474400,-430.0,0.00023013,2]
[362022806,1747937474410,-430.0,0.00023013,2]
[362022807,1747937474420,-430.0,0.00023013,2]
[362022808,1747937474429,-430.0,0.00023013,2]
[362022809,1747937474439,-241.47,0.00023013,2]
[362022810,1747937474448,-377.01576669,0.00023013,2]
[362022811,1747937474458,-430.0,0.00023013,2]
[362022812,1747937474467,-430.0,0.00023013,2]
[362022813,1747937474478,-601.61,0.00023013,2]
[362022814,1747937474487,-430.0,0.00023013,2]
[362022815,1747937474496,-920.11,0.00023013,2]
[362022816,1747937474507,-430.0,0.00023013,2]
[362022817,1747937474516,-1361.15,0.00023013,2]
[362022818,1747937474525,-337.4615521,0.00023013,2]
[362022819,1747937474534,-1240.4,0.00023013,2]
[362022820,1747937474543,-430.0,0.00023013,2]
[362022821,1747937474554,-430.0,0.00023013,2]
[362022822,1747937474563,-782.33,0.00023013,2]
[362022823,1747937474573,-980.99,0.00023013,2]
[362022824,1747937474582,-430.0,0.00023013,2]
[362022825,1747937474592,-430.0,0.00023013,2]
[362022826,1747937474601,-430.0,0.00023013,2]
[362022827,1747937474611,-430.0,0.00023013,2]
[362022828,1747937474620,-430.0,0.00023013,2]
[362022829,1747937474630,-500.82495203,0.00023021,2]
[362022830,1747937474641,-1000.0,0.00023021,2]
[362022831,1747937474650,-560.70125874,0.00023021,2]
[362022832,1747937474659,-1000.0,0.00023021,2]
[362022833,1747937474669,-1000.0,0.00023021,2]
[362022834,1747937474679,-600.0,0.0002304,2]
[362022835,1747937474688,-159.05485592,0.00023041,2]
[362022836,1747937474698,-161.94074666,0.00023041,2]
[362022837,1747937474709,-2717.99,0.00023055,2]
[362022838,1747937474719,-1248.89,0.00023055,2]
[362022839,1747937474728,-1231.12,0.00023055,2]
[362022840,1747937474738,-430.0,0.00023055,2]
[362022841,1747937474747,-3114.31,0.00023055,2]
[362022842,1747937474757,-6202.28,0.00023055,2]
[362022843,1747937474767,-869.75,0.00023055,2]
[362022844,1747937474776,-430.0,0.00023055,2]
[362022845,1747937474786,-2313.92,0.00023055,2]
[362022846,1747937474900,-723.28,0.00023055,2]
[362022847,1747937474918,-1963.66,0.00023055,2]
[362022848,1747937474928,-927.6,0.00023055,2]
[362022849,1747937474938,-1019.25,0.00023055,2]
[362022850,1747937474947,-1494.4,0.00023055,2]
[362022851,1747937474956,-430.0,0.00023055,2]
[362022852,1747937474965,-430.0,0.00023055,2]
[362022853,1747937474976,-1033.98,0.00023055,2]
[362022854,1747937474987,-551.4,0.00023055,2]
[362022855,1747937474997,-1443.52,0.00023055,2]
[362022856,1747937475008,-488.57,0.00023055,2]
[362022857,1747937475018,-1500.0,0.00023068,2]
[362022858,1747937475029,-1500.0,0.00023068,2]
[362022859,1747937475038,-543.3288754,0.00023164,2]
[362022860,1747937475048,-2663.27909513,0.00023176,8]
[362022861,1747937475060,-161.817687,0.00023186,9]
[362022862,1747937475070,-755.29,0.00023189,2]
[362022863,1747937475079,-430.0,0.00023189,2]
[362022864,1747937475089,-430.0,0.00023189,2]
[362022865,1747937475098,-430.0,0.00023189,2]
[362022866,1747937475107,-543.2,0.00023189,2]
[362022867,1747937475117,-727.06,0.00023189,2]
[362022868,1747937475126,-430.0,0.00023189,2]
[362022869,1747937475135,-444.13,0.00023189,2]
[362022870,1747937475145,-928.04,0.00023189,2]
[362022871,1747937475155,-430.0,0.00023189,2]
[362022872,1747937475165,-4381.58,0.00023189,2]
[362022873,1747937475186,-430.0,0.00023189,2]
[362022874,1747937475206,-953.82,0.00023189,2]
[362022875,1747937475217,-2814.75,0.00023189,2]
[362022876,1747937475228,-348.67,0.00023189,2]
[362022877,1747937475238,-1916.57,0.00023189,2]
[362022878,1747937475248,-2051.68,0.00023189,2]
[362022879,1747937475257,-1029.01,0.00023189,2]
[362022880,1747937475267,-430.0,0.00023189,2]
[362022881,1747937475276,-1345.46,0.00023189,2]
[362022882,1747937475286,-854.7,0.00023189,2]
[362022883,1747937475295,-1268.89,0.00023189,2]
[362022884,1747937475305,-430.0,0.00023189,2]
[362022885,1747937475314,-1006.28,0.00023189,2]
[362022886,1747937475323,-376.14,0.00023189,2]
[362022887,1747937475333,-9816.64,0.00023189,2]
[362022888,1747937475343,-430.0,0.00023189,2]
[362022889,1747937475352,-430.0,0.00023189,2]
[362022890,1747937475362,-174.49482467,0.00023189,2]
[362022891,1747937475372,-1432.41,0.00023189,2]
[362022892,1747937475381,-944.38,0.00023189,2]
[362022893,1747937475391,-880.15,0.00023189,2]
[362022894,1747937475400,-430.0,0.00023189,2]
[362022895,1747937475410,-430.0,0.00023189,2]
[362022896,1747937475420,-430.0,0.00023189,2]
[362022897,1747937475429,-633.5,0.00023189,2]
[362022898,1747937475438,-445.76,0.00023189,2]
[362022899,1747937475447,-430.0,0.00023189,2]
[362022900,1747937475457,-430.0,0.00023189,2]
[362022901,1747937475467,-430.0,0.00023189,2]
[362022902,1747937475476,-430.0,0.00023189,2]
[362022903,1747937475486,-430.0,0.00023189,2]
[362022904,1747937475495,-760.18,0.00023189,2]
[362022905,1747937475507,-1811.62,0.00023189,2]
[362022906,1747937475516,-1062.44,0.00023189,2]
[362022907,1747937475530,-1627.43,0.00023189,2]
[362022908,1747937475543,-679.42,0.00023189,2]
[362022909,1747937475554,-430.0,0.00023189,2]
[362022910,1747937475564,-2910.52,0.00023189,2]
[362022911,1747937475574,-430.0,0.00023189,2]
[362022912,1747937475584,-798.79,0.00023189,2]
[362022913,1747937475595,-997.02,0.00023189,2]
[362022914,1747937475606,-1202.01,0.00023189,2]
[362022915,1747937475616,-500.0,0.00023189,2]
[362022916,1747937475627,-2934.9,0.00023189,2]
[362022917,1747937475638,-151.0,0.0002319,7]
[362022918,1747937475648,-8361.66808399,0.0002321,2]
[362022919,1747937475662,-2000.0,0.00023216,2]
[362022920,1747937475673,-2400.0,0.00023216,2]
[362022921,1747937475683,-1001.49915432,0.00023216,2]
[362022922,1747937475694,-2000.0,0.00023216,2]
[362022923,1747937475704,-2000.0,0.00023216,2]
[362022924,1747937475715,-2000.0,0.00023216,2]
[362022925,1747937475724,-1007.30167474,0.00023216,2]
[362022926,1747937475734,-447.56,0.0002324,2]
[362022927,1747937475744,-793.08,0.0002324,2]
[362022928,1747937475758,-870.97,0.0002324,2]
[362022929,1747937475768,-754.99,0.0002324,2]
[362022930,1747937475779,-2636.85,0.0002324,2]
[362022931,1747937475789,-4193.45,0.0002324,2]
[362022932,1747937475799,-635.81,0.0002324,2]
[362022933,1747937475808,-8839.91,0.0002324,2]
[362022934,1747937475818,-150.5,0.0002326,120]
[362022935,1747937475828,-581.99686201,0.00023268,2]
[362022936,1747937475838,-1500.0,0.00023268,2]
[362022937,1747937475848,-1500.0,0.00023268,2]
[362022938,1747937475857,-1500.0,0.00023268,2]
[362022939,1747937475868,-1500.0,0.00023268,2]
[362022940,1747937475877,-1500.0,0.00023268,2]
[362022941,1747937475887,-1500.0,0.00023268,2]
[362022942,1747937475896,-1500.0,0.00023268,2]
[362022943,1747937475906,-1500.0,0.00023268,2]
[362022944,1747937475915,-1500.0,0.00023268,2]
[362022945,1747937475925,-1500.0,0.00023268,2]
[362022946,1747937475934,-213.72861825,0.00023268,2]
[362022947,1747937475944,-1500.0,0.00023268,2]
[362022948,1747937475953,-1500.0,0.00023268,2]
[362022949,1747937475963,-150.5,0.0002327,120]
[362022950,1747937475973,-150.5,0.0002328,120]
[362022951,1747937475985,-606.19955931,0.0002328,2]
[362022952,1747937475995,-160.0,0.00023286,2]
[362022953,1747937476007,-160.0,0.00023286,2]
[362022954,1747937476017,-524.78,0.00023287,2]
[362022955,1747937476026,-430.0,0.00023287,2]
[362022956,1747937476036,-430.0,0.00023287,2]
[362022957,1747937476045,-439.05,0.00023287,2]
[362022958,1747937476055,-430.0,0.00023287,2]
[362022959,1747937476067,-430.0,0.00023287,2]
[362022960,1747937476076,-430.0,0.00023287,2]
[362022961,1747937476086,-430.0,0.00023287,2]
[362022962,1747937476095,-430.0,0.00023287,2]
[362022963,1747937476105,-1218.95,0.00023287,2]
[362022964,1747937476115,-411.25266767,0.00023287,2]
[362022965,1747937476124,-431.63136322,0.00023287,2]
[362022966,1747937476133,-430.0,0.00023287,2]
[362022967,1747937476143,-580.09,0.00023287,2]
[362022968,1747937476152,-430.0,0.00023287,2]
[362022969,1747937476162,-470.0,0.00023287,2]
[362022970,1747937476172,-430.0,0.00023287,2]
[362022971,1747937476181,-430.0,0.00023287,2]
[362022972,1747937476190,-430.0,0.00023287,2]
[362022973,1747937476201,-463.95401713,0.00023287,2]
[362022974,1747937476211,-430.0,0.00023287,2]
[362022975,1747937476220,-430.0,0.00023287,2]
[362022976,1747937476229,-450.49,0.00023287,2]
[362022977,1747937476239,-430.0,0.00023287,2]
[362022978,1747937476249,-1179.96,0.00023287,2]
[362022979,1747937476260,-430.0,0.00023287,2]
[362022980,1747937476270,-430.0,0.00023287,2]
[362022981,1747937476279,-430.0,0.00023287,2]
[362022982,1747937476289,-430.0,0.00023287,2]
[362022983,1747937476299,-430.0,0.00023287,2]
[362022984,1747937476308,-430.0,0.00023287,2]
[362022985,1747937476319,-601.61,0.00023287,2]
[362022986,1747937476328,-430.0,0.00023287,2]
[362022987,1747937476337,-920.11,0.00023287,2]
[362022988,1747937476347,-430.0,0.00023287,2]
[362022989,1747937476356,-1361.15,0.00023287,2]
[362022990,1747937476366,-1240.4,0.00023287,2]
[362022991,1747937476375,-430.0,0.00023287,2]
[362022992,1747937476384,-430.0,0.00023287,2]
[362022993,1747937476394,-782.33,0.00023287,2]
[362022994,1747937476403,-980.99,0.00023287,2]
[362022995,1747937476412,-430.0,0.00023287,2]
[362022996,1747937476421,-430.0,0.00023287,2]
[362022997,1747937476430,-430.0,0.00023287,2]
[362022998,1747937476439,-430.0,0.00023287,2]
[362022999,1747937476448,-430.0,0.00023287,2]
[362023000,1747937476458,-3709.81,0.00023287,2]
[362023001,1747937476468,-159.05485592,0.00023288,2]
[362023002,1747937476477,-1000.0,0.00023288,30]
[362023003,1747937476487,-161.94074666,0.00023288,2]
[362023004,1747937476496,-158.32109,0.00023295,6]
[362023005,1747937476507,-1000.0,0.00023321,2]
[362023006,1747937476516,-567.78951468,0.00023321,2]
[362023007,1747937476525,-1000.0,0.00023321,2]
[362023008,1747937476535,-2717.99,0.00023329,2]
[362023009,1747937476544,-1248.89,0.00023329,2]
[362023010,1747937476659,-1231.12,0.00023329,2]
[362023011,1747937476669,-430.0,0.00023329,2]
[362023012,1747937476679,-3114.31,0.00023329,2]
[362023013,1747937476689,-6202.28,0.00023329,2]
[362023014,1747937476698,-869.75,0.00023329,2]
[362023015,1747937476708,-430.0,0.00023329,2]
[362023016,1747937476718,-2313.92,0.00023329,2]
[362023017,1747937476728,-723.28,0.00023329,2]
[362023018,1747937476737,-1963.66,0.00023329,2]
[362023019,1747937476746,-927.6,0.00023329,2]
[362023020,1747937476757,-1019.25,0.00023329,2]
[362023021,1747937476767,-1494.4,0.00023329,2]
[362023022,1747937476776,-574.57,0.00023329,2]
[362023023,1747937476785,-430.0,0.00023329,2]
[362023024,1747937476795,-1033.98,0.00023329,2]
[362023025,1747937476804,-551.4,0.00023329,2]
[362023026,1747937476814,-1443.52,0.00023329,2]
[362023027,1747937476825,-488.57,0.00023329,2]
[362023028,1747937476835,-587.0,0.00023347,2]
[362023029,1747937476845,-587.0,0.00023347,2]
[362023030,1747937476854,-2663.27909513,0.00023348,9]
[362023031,1747937476864,-153.0,0.0002337,2]
[362023032,1747937476874,-755.29,0.00023463,2]
[362023033,1747937476884,-430.0,0.00023463,2]
[362023034,1747937476893,-430.0,0.00023463,2]
[362023035,1747937476903,-194.2,0.00023463,2]
[362023036,1747937476912,-543.2,0.00023463,2]
[362023037,1747937476921,-727.06,0.00023463,2]
[362023038,1747937476931,-430.0,0.00023463,2]
[362023039,1747937476941,-444.13,0.00023463,2]
[362023040,1747937476950,-928.04,0.00023463,2]
[362023041,1747937476960,-430.0,0.00023463,2]
[362023042,1747937476972,-4381.58,0.00023463,2]
[362023043,1747937476983,-430.0,0.00023463,2]
[362023044,1747937476993,-953.82,0.00023463,2]
[362023045,1747937477004,-2814.75,0.00023463,2]
[362023046,1747937477014,-1916.57,0.00023463,2]
[362023047,1747937477024,-2051.68,0.00023463,2]
[362023048,1747937477033,-1029.01,0.00023463,2]
[362023049,1747937477043,-227.74,0.00023463,2]
[362023050,1747937477053,-1345.46,0.00023463,2]
[362023051,1747937477065,-854.7,0.00023463,2]
[362023052,1747937477075,-1268.89,0.00023463,2]
[362023053,1747937477085,-430.0,0.00023463,2]
[362023054,1747937477094,-1006.28,0.00023463,2]
[362023055,1747937477103,-9816.64,0.00023463,2]
[362023056,1747937477114,-430.0,0.00023463,2]
[362023057,1747937477125,-430.0,0.00023463,2]
[362023058,1747937477135,-1432.41,0.00023463,2]
[362023059,1747937477144,-944.38,0.00023463,2]
[362023060,1747937477154,-880.15,0.00023463,2]
[362023061,1747937477165,-430.0,0.00023463,2]
[362023062,1747937477174,-430.0,0.00023463,2]
[362023063,1747937477184,-430.0,0.00023463,2]
[362023064,1747937477193,-633.5,0.00023463,2]
[362023065,1747937477204,-430.0,0.00023463,2]
[362023066,1747937477213,-430.0,0.00023463,2]
[362023067,1747937477223,-430.0,0.00023463,2]
[362023068,1747937477232,-506.44517377,0.00023463,2]
[362023069,1747937477243,-384.02,0.00023463,2]
[362023070,1747937477252,-760.18,0.00023463,2]
[362023071,1747937477262,-1811.62,0.00023463,2]
[362023072,1747937477271,-1062.44,0.00023463,2]
[362023073,1747937477280,-1627.43,0.00023463,2]
[362023074,1747937477290,-679.42,0.00023463,2]
[362023075,1747937477300,-430.0,0.00023463,2]
[362023076,1747937477310,-2910.52,0.00023463,2]
[362023077,1747937477319,-430.0,0.00023463,2]
[362023078,1747937477332,-798.79,0.00023463,2]
[362023079,1747937477342,-997.02,0.00023463,2]
[362023080,1747937477352,-1202.01,0.00023463,2]
[362023081,1747937477362,-500.0,0.00023463,2]
[362023082,1747937477372,-8361.66808399,0.00023492,2]
[362023083,1747937477382,-159.05485592,0.00023507,2]
[362023084,1747937477392,-161.94074666,0.00023507,2]
[362023085,1747937477401,-161.817687,0.0002351,7]
[362023086,1747937477411,-158.32109,0.0002351,7]
[362023087,1747937477420,-447.56,0.00023514,2]
[362023088,1747937477429,-793.08,0.00023514,2]
[362023089,1747937477439,-870.97,0.00023514,2]
[362023090,1747937477448,-754.99,0.00023514,2]
[362023091,1747937477458,-2636.85,0.00023514,2]
[362023092,1747937477468,-4193.45,0.00023514,2]
[362023093,1747937477478,-635.81,0.00023514,2]
[362023094,1747937477487,-8839.91,0.00023514,2]
[362023095,1747937477497,-161.817687,0.0002352,30]
[362023096,1747937477508,-2663.27909513,0.00023521,9]
[362023097,1747937477518,-240.0,0.0002356,2]
[362023098,1747937477528,-524.78,0.00023561,2]
[362023099,1747937477537,-430.0,0.00023561,2]
[362023100,1747937477547,-430.0,0.00023561,2]
[362023101,1747937477556,-439.05,0.00023561,2]
[362023102,1747937477566,-430.0,0.00023561,2]
[362023103,1747937477575,-336.44,0.00023561,2]
[362023104,1747937477585,-430.0,0.00023561,2]
[362023105,1747937477595,-430.0,0.00023561,2]
[362023106,1747937477605,-574.06867561,0.00023561,2]
[362023107,1747937477614,-1218.95,0.00023561,2]
[362023108,1747937477624,-430.0,0.00023561,2]
[362023109,1747937477633,-580.09,0.00023561,2]
[362023110,1747937477643,-430.0,0.00023561,2]
[362023111,1747937477652,-430.0,0.00023561,2]
[362023112,1747937477661,-470.0,0.00023561,2]
[362023113,1747937477670,-430.0,0.00023561,2]
[362023114,1747937477680,-430.0,0.00023561,2]
[362023115,1747937477689,-430.0,0.00023561,2]
[362023116,1747937477699,-450.49,0.00023561,2]
[362023117,1747937477708,-430.0,0.00023561,2]
[362023118,1747937477718,-1179.96,0.00023561,2]
[362023119,1747937477726,-430.0,0.00023561,2]
[362023120,1747937477735,-430.0,0.00023561,2]
[362023121,1747937477745,-430.0,0.00023561,2]
[362023122,1747937477755,-430.0,0.00023561,2]
[362023123,1747937477765,-430.0,0.00023561,2]
[362023124,1747937477774,-430.0,0.00023561,2]
[362023125,1747937477783,-601.61,0.00023561,2]
[362023126,1747937477793,-430.0,0.00023561,2]
[362023127,1747937477803,-920.11,0.00023561,2]
[362023128,1747937477813,-430.0,0.00023561,2]
[362023129,1747937477822,-1361.15,0.00023561,2]
[362023130,1747937477832,-1240.4,0.00023561,2]
[362023131,1747937477842,-430.0,0.00023561,2]
[362023132,1747937477851,-430.0,0.00023561,2]
[362023133,1747937477861,-782.33,0.00023561,2]
[362023134,1747937477870,-980.99,0.00023561,2]
[362023135,1747937477879,-346.34,0.00023561,2]
[362023136,1747937477889,-430.0,0.00023561,2]
[362023137,1747937477898,-430.0,0.00023561,2]
[362023138,1747937477908,-430.0,0.00023561,2]
[362023139,1747937477918,-687.21,0.00023565,11]
[362023140,1747937477928,-1500.0,0.00023568,2]
[362023141,1747937477939,-1500.0,0.00023568,2]
[362023142,1747937477950,-1500.0,0.00023568,2]
[362023143,1747937477960,-1139.36599332,0.0002358,2]
[362023144,1747937477971,-2717.99,0.00023603,2]
[362023145,1747937477983,-1248.89,0.00023603,2]
[362023146,1747937477993,-1231.12,0.00023603,2]
[362023147,1747937478003,-430.0,0.00023603,2]
[362023148,1747937478013,-3114.31,0.00023603,2]
[362023149,1747937478024,-6202.28,0.00023603,2]
[362023150,1747937478035,-869.75,0.00023603,2]
[362023151,1747937478045,-430.0,0.00023603,2]
[362023152,1747937478056,-2313.92,0.00023603,2]
[362023153,1747937478066,-723.28,0.00023603,2]
[362023154,1747937478076,-1963.66,0.00023603,2]
[362023155,1747937478086,-927.6,0.00023603,2]
[362023156,1747937478095,-1019.25,0.00023603,2]
[362023157,1747937478105,-1494.4,0.00023603,2]
[362023158,1747937478115,-507.19,0.00023603,2]
[362023159,1747937478124,-1033.98,0.00023603,2]
[362023160,1747937478134,-551.4,0.00023603,2]
[362023161,1747937478256,-1443.52,0.00023603,2]
[362023162,1747937478266,-488.57,0.00023603,2]
[362023163,1747937478277,-658.16770055,0.00023616,2]